fUST/lending_fUST_20250520
["ID","MTS","AMOUNT","RATE_DAILY","PERIOD"]
[361689325,1747693858960,-151.10108399,0.00019497,2]
[361689326,1747693858970,-1159.3892112,0.00019555,2]
[361689327,1747693858979,-269.706877,0.00019726,2]
[361689328,1747693858989,-154.447541,0.00019726,2]
[361689329,1747693858998,-154.447541,0.00019726,2]
[361689330,1747693859008,-154.447541,0.00019726,2]
[361689331,1747693859017,-154.447543,0.00019726,2]
[361689332,1747693859027,-651.52,0.00019726,2]
[361689333,1747693859036,-260.70061236,0.00019726,2]
[361689334,1747693859045,-430.0,0.00019726,2]
[361689335,1747693859055,-509.99,0.00019726,2]
[361689336,1747693859064,-430.0,0.00019726,2]
[361689337,1747693859073,-430.0,0.00019726,2]
[361689338,1747693859083,-732.74,0.00019726,2]
[361689339,1747693859092,-430.0,0.00019726,2]
[361689340,1747693859101,-430.0,0.00019726,2]
[361689341,1747693859111,-430.0,0.00019726,2]
[361689342,1747693859120,-430.0,0.00019726,2]
[361689343,1747693859130,-509.72,0.00019726,2]
[361689344,1747693859139,-430.0,0.00019726,2]
[361689345,1747693859149,-430.0,0.00019726,2]
[361689346,1747693859159,-430.0,0.00019726,2]
[361689347,1747693859169,-430.0,0.00019726,2]
[361689348,1747693859180,-430.0,0.00019726,2]
[361689349,1747693859189,-550.0,0.00019726,2]
[361689350,1747693859199,-430.0,0.00019726,2]
[361689351,1747693859210,-430.0,0.00019726,2]
[361689352,1747693859220,-430.0,0.00019726,2]
[361689353,1747693859229,-437.51,0.00019726,2]
[361689354,1747693859238,-584.57,0.00019726,2]
[361689355,1747693859247,-430.0,0.00019726,2]
[361689356,1747693859257,-204.09729973,0.00019726,2]
[361689357,1747693859270,-430.0,0.00019726,2]
[361689358,1747693859279,-597.19,0.00019726,2]
[361689359,1747693859288,-430.0,0.00019726,2]
[361689360,1747693859298,-821.41,0.00019726,2]
[361689361,1747693859307,-430.0,0.00019726,2]
[361689362,1747693859316,-430.0,0.00019726,2]
[361689363,1747693859326,-430.0,0.00019726,2]
[361689364,1747693859335,-430.0,0.00019726,2]
[361689365,1747693859344,-430.0,0.00019726,2]
[361689366,1747693859354,-430.0,0.00019726,2]
[361689367,1747693859363,-430.0,0.00019726,2]
[361689368,1747693859372,-430.0,0.00019726,2]
[361689369,1747693859382,-451.97,0.00019726,2]
[361689370,1747693859392,-430.0,0.00019726,2]
[361689371,1747693859402,-430.0,0.00019726,2]
[361689372,1747693859413,-430.0,0.00019726,2]
[361689373,1747693859422,-430.0,0.00019726,2]
[361689374,1747693859434,-430.0,0.00019726,2]
[361689375,1747693859444,-430.0,0.00019726,2]
[361689376,1747693859454,-628.93,0.00019726,2]
[361689377,1747693859464,-826.72,0.00019726,2]
[361689378,1747693859473,-466.55386601,0.00019726,2]
[361689379,1747693859483,-527.68668531,0.00019726,2]
[361689380,1747693859493,-457.8,0.00019726,2]
[361689381,1747693859502,-430.0,0.00019726,2]
[361689382,1747693859640,-430.0,0.00019726,2]
[361689383,1747693859651,-349.34,0.00019726,2]
[361689384,1747693859661,-788.12,0.00019726,2]
[361689385,1747693859671,-430.0,0.00019726,2]
[361689386,1747693859680,-430.0,0.00019726,2]
[361689387,1747693859690,-430.0,0.00019726,2]
[361689388,1747693859700,-430.0,0.00019726,2]
[361689389,1747693859709,-541.45,0.00019726,2]
[361689390,1747693859719,-645.45,0.00019726,2]
[361689391,1747693859729,-430.0,0.00019726,2]
[361689392,1747693859738,-192.8927751,0.00019726,2]
[361689393,1747693859747,-430.0,0.00019726,2]
[361689394,1747693859756,-430.0,0.00019726,2]
[361689395,1747693859766,-430.0,0.00019726,2]
[361689396,1747693859776,-430.0,0.00019726,2]
[361689397,1747693859785,-430.0,0.00019726,2]
[361689398,1747693859795,-550.0,0.00019726,2]
[361689399,1747693859804,-430.0,0.00019726,2]
[361689400,1747693859814,-560.02,0.00019726,2]
[361689401,1747693859823,-772.82,0.00019726,2]
[361689402,1747693859833,-430.0,0.00019726,2]
[361689403,1747693859842,-430.0,0.00019726,2]
[361689404,1747693859852,-430.0,0.00019726,2]
[361689405,1747693859861,-430.0,0.00019726,2]
[361689406,1747693859870,-430.0,0.00019726,2]
[361689407,1747693859880,-430.0,0.00019726,2]
[361689408,1747693859889,-430.0,0.00019726,2]
[361689409,1747693859899,-430.0,0.00019726,2]
[361689410,1747693859908,-430.0,0.00019726,2]
[361689411,1747693859918,-461.72,0.00019726,2]
[361689412,1747693859927,-688.5,0.00019726,2]
[361689413,1747693859936,-230.0,0.00019726,2]
[361689414,1747693859945,-430.0,0.00019726,2]
[361689415,1747693859955,-616.06,0.00019726,2]
[361689416,1747693859964,-430.0,0.00019726,2]
[361689417,1747693859973,-430.0,0.00019726,2]
[361689418,1747693859982,-455.92,0.00019726,2]
[361689419,1747693859992,-430.0,0.00019726,2]
[361689420,1747693860001,-570.0,0.00019726,2]
[361689421,1747693860011,-430.0,0.00019726,2]
[361689422,1747693860020,-570.0,0.00019726,2]
[361689423,1747693860029,-430.0,0.00019726,2]
[361689424,1747693860039,-430.0,0.00019726,2]
[361689425,1747693860048,-430.0,0.00019726,2]
[361689426,1747693860058,-430.0,0.00019726,2]
[361689427,1747693860067,-344.42288638,0.00019726,2]
[361689428,1747693860077,-430.0,0.00019726,2]
[361689429,1747693860087,-1238.66,0.00019726,2]
[361689430,1747693860096,-233.52,0.00019726,2]
[361689431,1747693860105,-430.0,0.00019726,2]
[361689432,1747693860115,-681.65,0.00019726,2]
[361689433,1747693860124,-332.11078558,0.00019726,2]
[361689434,1747693860134,-430.0,0.00019726,2]
[361689435,1747693860143,-430.0,0.00019726,2]
[361689436,1747693860152,-862.58,0.00019726,2]
[361689437,1747693860161,-430.0,0.00019726,2]
[361689438,1747693860171,-724.76,0.00019726,2]
[361689439,1747693860180,-430.0,0.00019726,2]
[361689440,1747693860189,-430.0,0.00019726,2]
[361689441,1747693860198,-718.44,0.00019726,2]
[361689442,1747693860208,-1486.21,0.00019726,2]
[361689443,1747693860220,-429.01,0.00019726,2]
[361689444,1747693860230,-430.0,0.00019726,2]
[361689445,1747693860239,-436.65,0.00019726,2]
[361689446,1747693860248,-430.0,0.00019726,2]
[361689447,1747693860258,-1409.24,0.00019726,2]
[361689448,1747693860268,-430.0,0.00019726,2]
[361689449,1747693860277,-430.0,0.00019726,2]
[361689450,1747693860287,-1956.59,0.00019726,2]
[361689451,1747693860297,-430.0,0.00019726,2]
[361689452,1747693860307,-430.0,0.00019726,2]
[361689453,1747693860316,-621.1,0.00019726,2]
[361689454,1747693860325,-430.0,0.00019726,2]
[361689455,1747693860334,-479.24,0.00019726,2]
[361689456,1747693860343,-652.6,0.00019726,2]
[361689457,1747693860352,-3564.26,0.00019726,2]
[361689458,1747693860361,-625.58,0.00019726,2]
[361689459,1747693860370,-531.21,0.00019726,2]
[361689460,1747693860379,-268.8827355,0.00019726,2]
[361689461,1747693860388,-430.0,0.00019726,2]
[361689462,1747693860397,-430.0,0.00019726,2]
[361689463,1747693860406,-430.0,0.00019726,2]
[361689464,1747693860415,-430.0,0.00019726,2]
[361689465,1747693860424,-430.0,0.00019726,2]
[361689466,1747693860433,-917.56,0.00019726,2]
[361689467,1747693860442,-430.0,0.00019726,2]
[361689468,1747693860451,-963.29,0.00019726,2]
[361689469,1747693860460,-1059.44,0.00019726,2]
[361689470,1747693860469,-2463.34,0.00019726,2]
[361689471,1747693860478,-1322.67,0.00019726,2]
[361689472,1747693860487,-267.75104682,0.00019726,2]
[361689473,1747693860496,-989.85,0.00019726,2]
[361689474,1747693860505,-525.07,0.00019726,2]
[361689475,1747693860515,-430.0,0.00019726,2]
[361689476,1747693860524,-472.87,0.00019726,2]
[361689477,1747693860534,-430.0,0.00019726,2]
[361689478,1747693860543,-230.0,0.00019726,2]
[361689479,1747693860553,-1071.91,0.00019726,2]
[361689480,1747693860563,-430.0,0.00019726,2]
[361689481,1747693860572,-430.0,0.00019726,2]
[361689482,1747693860582,-416.15,0.00019726,2]
[361689483,1747693860591,-6970.38,0.00019726,2]
[361689484,1747693860601,-1365.37,0.00019726,2]
[361689485,1747693860610,-435.96,0.00019726,2]
[361689486,1747693860620,-430.0,0.00019726,2]
[361689487,1747693860629,-492.52,0.00019726,2]
[361689488,1747693860640,-572.38,0.00019726,2]
[361689489,1747693860649,-428.8,0.00019726,2]
[361689490,1747693860659,-430.0,0.00019726,2]
[361689491,1747693860669,-1276.02,0.00019726,2]
[361689492,1747693860678,-497.67,0.00019726,2]
[361689493,1747693860687,-430.0,0.00019726,2]
[361689494,1747693860697,-2285.96,0.00019726,2]
[361689495,1747693860706,-1674.68,0.00019726,2]
[361689496,1747693860716,-430.0,0.00019726,2]
[361689497,1747693860725,-430.0,0.00019726,2]
[361689498,1747693860735,-430.0,0.00019726,2]
[361689499,1747693860744,-430.0,0.00019726,2]
[361689500,1747693860753,-430.0,0.00019726,2]
[361689501,1747693860762,-430.0,0.00019726,2]
[361689502,1747693860771,-233.06,0.00019726,2]
[361689503,1747693860781,-1177.1,0.00019726,2]
[361689504,1747693860790,-430.0,0.00019726,2]
[361689505,1747693860800,-4144.0,0.00019726,2]
[361689506,1747693860809,-4514.42,0.00019726,2]
[361689507,1747693860819,-589.39,0.00019726,2]
[361689508,1747693860828,-2345.01,0.00019726,2]
[361689509,1747693860837,-430.0,0.00019726,2]
[361689510,1747693860846,-430.0,0.00019726,2]
[361689511,1747693860856,-579.27144304,0.00019726,2]
[361689512,1747693860865,-430.0,0.00019726,2]
[361689513,1747693860874,-1255.98,0.00019726,2]
[361689514,1747693860884,-1428.09,0.00019726,2]
[361689515,1747693860893,-1007.3,0.00019726,2]
[361689516,1747693860903,-430.0,0.00019726,2]
[361689517,1747693860912,-430.0,0.00019726,2]
[361689518,1747693860921,-430.0,0.00019726,2]
[361689519,1747693860931,-567.37,0.00019726,2]
[361689520,1747693860940,-430.0,0.00019726,2]
[361689521,1747693860949,-430.0,0.00019726,2]
[361689522,1747693860959,-1170.71,0.00019726,2]
[361689523,1747693860968,-430.0,0.00019726,2]
[361689524,1747693860977,-430.0,0.00019726,2]
[361689525,1747693860987,-6164.94,0.00019726,2]
[361689526,1747693860996,-1695.82,0.00019726,2]
[361689527,1747693861005,-1029.82,0.00019726,2]
[361689528,1747693861015,-430.0,0.00019726,2]
[361689529,1747693861024,-430.0,0.00019726,2]
[361689530,1747693861034,-430.0,0.00019726,2]
[361689531,1747693861043,-1142.01,0.00019726,2]
[361689532,1747693861052,-430.0,0.00019726,2]
[361689533,1747693861062,-503.28,0.00019726,2]
[361689534,1747693861071,-1592.78,0.00019726,2]
[361689535,1747693861081,-289.34,0.00019726,2]
[361689536,1747693861091,-1295.39,0.00019726,2]
[361689537,1747693861100,-670.07,0.00019726,2]
[361689538,1747693861109,-430.0,0.00019726,2]
[361689539,1747693861118,-430.0,0.00019726,2]
[361689540,1747693861128,-430.0,0.00019726,2]
[361689541,1747693861137,-430.0,0.00019726,2]
[361689542,1747693861146,-1232.45,0.00019726,2]
[361689543,1747693861155,-1017.31,0.00019726,2]
[361689544,1747693861164,-430.0,0.00019726,2]
[361689545,1747693861172,-1326.53,0.00019726,2]
[361689546,1747693861181,-1258.46,0.00019726,2]
[361689547,1747693861191,-430.0,0.00019726,2]
[361689548,1747693861200,-2643.08,0.00019726,2]
[361689549,1747693861210,-430.0,0.00019726,2]
[361689550,1747693861220,-430.0,0.00019726,2]
[361689551,1747693861229,-430.0,0.00019726,2]
[361689552,1747693861238,-1678.98,0.00019726,2]
[361689553,1747693861247,-430.0,0.00019726,2]
[361689554,1747693861256,-670.64,0.00019726,2]
[361689555,1747693861266,-872.02,0.00019726,2]
[361689556,1747693861275,-430.0,0.00019726,2]
[361689557,1747693861284,-430.0,0.00019726,2]
[361689558,1747693861293,-412.66,0.00019726,2]
[361689559,1747693861302,-747.98,0.00019726,2]
[361689560,1747693861312,-993.14,0.00019726,2]
[361689561,1747693861321,-430.0,0.00019726,2]
[361689562,1747693861330,-867.01,0.00019726,2]
[361689563,1747693861339,-561.84,0.00019726,2]
[361689564,1747693861349,-430.0,0.00019726,2]
[361689565,1747693861358,-896.57,0.00019726,2]
[361689566,1747693861367,-430.0,0.00019726,2]
[361689567,1747693861376,-550.0,0.00019726,2]
[361689568,1747693861385,-846.37,0.00019726,2]
[361689569,1747693861395,-489.72,0.00019726,2]
[361689570,1747693861405,-507.94,0.00019726,2]
[361689571,1747693861415,-430.0,0.00019726,2]
[361689572,1747693861424,-551.77,0.00019726,2]
[361689573,1747693861434,-533.4,0.00019726,2]
[361689574,1747693861444,-546.01,0.00019726,2]
[361689575,1747693861453,-1186.61,0.00019726,2]
[361689576,1747693861464,-691.74,0.00019726,2]
[361689577,1747693861474,-536.58,0.00019726,2]
[361689578,1747693861483,-587.23,0.00019726,2]
[361689579,1747693861492,-1193.12,0.00019726,2]
[361689580,1747693861502,-1021.33,0.00019726,2]
[361689581,1747693861512,-430.0,0.00019726,2]
[361689582,1747693861521,-1095.83,0.00019726,2]
[361689583,1747693861531,-430.0,0.00019726,2]
[361689584,1747693861540,-430.0,0.00019726,2]
[361689585,1747693861550,-1500.0,0.00019768,2]
[361689586,1747693861559,-1159.3892112,0.00019831,2]
[361689587,1747693861569,-3000.0,0.00019899,3]
[361689588,1747693861579,-6523.42894095,0.000199,2]
[361689589,1747693861589,-651.52,0.0002,2]
[361689590,1747693861599,-430.0,0.0002,2]
[361689591,1747693861609,-430.0,0.0002,2]
[361689592,1747693861619,-430.0,0.0002,2]
[361689593,1747693861629,-732.74,0.0002,2]
[361689594,1747693861638,-430.0,0.0002,2]
[361689595,1747693861648,-430.0,0.0002,2]
[361689596,1747693861658,-430.0,0.0002,2]
[361689597,1747693861668,-430.0,0.0002,2]
[361689598,1747693861677,-509.72,0.0002,2]
[361689599,1747693861688,-430.0,0.0002,2]
[361689600,1747693861698,-430.0,0.0002,2]
[361689601,1747693861708,-430.0,0.0002,2]
[361689602,1747693861717,-430.0,0.0002,2]
[361689603,1747693861728,-360.12,0.0002,2]
[361689604,1747693861738,-430.0,0.0002,2]
[361689605,1747693861747,-430.0,0.0002,2]
[361689606,1747693861756,-430.0,0.0002,2]
[361689607,1747693861767,-157.85,0.0002,2]
[361689608,1747693861777,-437.51,0.0002,2]
[361689609,1747693861787,-157.85,0.0002,2]
[361689610,1747693861796,-584.57,0.0002,2]
[361689611,1747693861805,-430.0,0.0002,2]
[361689612,1747693861815,-430.0,0.0002,2]
[361689613,1747693861824,-597.19,0.0002,2]
[361689614,1747693861833,-430.0,0.0002,2]
[361689615,1747693861843,-821.41,0.0002,2]
[361689616,1747693861852,-430.0,0.0002,2]
[361689617,1747693861861,-430.0,0.0002,2]
[361689618,1747693861871,-430.0,0.0002,2]
[361689619,1747693861880,-430.0,0.0002,2]
[361689620,1747693861889,-274.76,0.0002,2]
[361689621,1747693861899,-430.0,0.0002,2]
[361689622,1747693861908,-430.0,0.0002,2]
[361689623,1747693861918,-430.0,0.0002,2]
[361689624,1747693861928,-451.97,0.0002,2]
[361689625,1747693861937,-430.0,0.0002,2]
[361689626,1747693861947,-430.0,0.0002,2]
[361689627,1747693861956,-430.0,0.0002,2]
[361689628,1747693861965,-430.0,0.0002,2]
[361689629,1747693861975,-325.23,0.0002,2]
[361689630,1747693861983,-430.0,0.0002,2]
[361689631,1747693861993,-628.93,0.0002,2]
[361689632,1747693862002,-826.72,0.0002,2]
[361689633,1747693862012,-457.8,0.0002,2]
[361689634,1747693862139,-160.0,0.0002,2]
[361689635,1747693862149,-430.0,0.0002,2]
[361689636,1747693862158,-788.12,0.0002,2]
[361689637,1747693862167,-430.0,0.0002,2]
[361689638,1747693862177,-430.0,0.0002,2]
[361689639,1747693862186,-182.00543677,0.0002,2]
[361689640,1747693862195,-430.0,0.0002,2]
[361689641,1747693862205,-541.45,0.0002,2]
[361689642,1747693862217,-645.45,0.0002,2]
[361689643,1747693862225,-430.0,0.0002,2]
[361689644,1747693862234,-430.0,0.0002,2]
[361689645,1747693862243,-392.99,0.0002,2]
[361689646,1747693862252,-430.0,0.0002,2]
[361689647,1747693862262,-430.0,0.0002,2]
[361689648,1747693862272,-430.0,0.0002,2]
[361689649,1747693862282,-337.57,0.0002,2]
[361689650,1747693862291,-560.02,0.0002,2]
[361689651,1747693862302,-772.82,0.0002,2]
[361689652,1747693862311,-430.0,0.0002,2]
[361689653,1747693862320,-430.0,0.0002,2]
[361689654,1747693862330,-430.0,0.0002,2]
[361689655,1747693862339,-308.84,0.0002,2]
[361689656,1747693862349,-430.0,0.0002,2]
[361689657,1747693862358,-430.0,0.0002,2]
[361689658,1747693862368,-430.0,0.0002,2]
[361689659,1747693862379,-430.0,0.0002,2]
[361689660,1747693862389,-430.0,0.0002,2]
[361689661,1747693862399,-688.5,0.0002,2]
[361689662,1747693862410,-430.0,0.0002,2]
[361689663,1747693862424,-616.06,0.0002,2]
[361689664,1747693862433,-430.0,0.0002,2]
[361689665,1747693862442,-430.0,0.0002,2]
[361689666,1747693862452,-455.92,0.0002,2]
[361689667,1747693862461,-430.0,0.0002,2]
[361689668,1747693862471,-430.0,0.0002,2]
[361689669,1747693862480,-428.78,0.0002,2]
[361689670,1747693862489,-430.0,0.0002,2]
[361689671,1747693862499,-430.0,0.0002,2]
[361689672,1747693862510,-430.0,0.0002,2]
[361689673,1747693862520,-430.0,0.0002,2]
[361689674,1747693862531,-1238.66,0.0002,2]
[361689675,1747693862541,-430.0,0.0002,2]
[361689676,1747693862552,-681.65,0.0002,2]
[361689677,1747693862562,-250.0,0.0002,30]
[361689678,1747693862571,-430.0,0.0002,2]
[361689679,1747693862580,-430.0,0.0002,2]
[361689680,1747693862589,-862.58,0.0002,2]
[361689681,1747693862599,-430.0,0.0002,2]
[361689682,1747693862609,-724.76,0.0002,2]
[361689683,1747693862618,-430.0,0.0002,2]
[361689684,1747693862627,-536.45,0.0002,2]
[361689685,1747693862636,-160.0,0.0002,3]
[361689686,1747693862647,-718.44,0.0002,2]
[361689687,1747693862657,-1486.21,0.0002,2]
[361689688,1747693862667,-205.45780602,0.0002,2]
[361689689,1747693862676,-436.65,0.0002,2]
[361689690,1747693862686,-365.14,0.0002,2]
[361689691,1747693862696,-1409.24,0.0002,2]
[361689692,1747693862706,-369.46,0.0002,2]
[361689693,1747693862715,-199.09,0.0002,2]
[361689694,1747693862724,-1956.59,0.0002,2]
[361689695,1747693862734,-474.9343198,0.0002,2]
[361689696,1747693862743,-430.0,0.0002,2]
[361689697,1747693862752,-621.1,0.0002,2]
[361689698,1747693862761,-300.0,0.0002,2]
[361689699,1747693862770,-430.0,0.0002,2]
[361689700,1747693862780,-479.24,0.0002,2]
[361689701,1747693862789,-652.6,0.0002,2]
[361689702,1747693862799,-3564.26,0.0002,2]
[361689703,1747693862808,-625.58,0.0002,2]
[361689704,1747693862817,-531.21,0.0002,2]
[361689705,1747693862826,-430.0,0.0002,2]
[361689706,1747693862835,-430.0,0.0002,2]
[361689707,1747693862844,-430.0,0.0002,2]
[361689708,1747693862853,-430.0,0.0002,2]
[361689709,1747693862862,-430.0,0.0002,2]
[361689710,1747693862871,-917.56,0.0002,2]
[361689711,1747693862881,-430.0,0.0002,2]
[361689712,1747693862890,-963.29,0.0002,2]
[361689713,1747693862899,-1059.44,0.0002,2]
[361689714,1747693862908,-2463.34,0.0002,2]
[361689715,1747693862917,-1322.67,0.0002,2]
[361689716,1747693862927,-989.85,0.0002,2]
[361689717,1747693862936,-430.0,0.0002,2]
[361689718,1747693862945,-472.87,0.0002,2]
[361689719,1747693862954,-430.0,0.0002,2]
[361689720,1747693862963,-1071.91,0.0002,2]
[361689721,1747693862973,-430.0,0.0002,2]
[361689722,1747693862983,-430.0,0.0002,2]
[361689723,1747693862992,-1365.37,0.0002,2]
[361689724,1747693863002,-435.96,0.0002,2]
[361689725,1747693863012,-430.0,0.0002,2]
[361689726,1747693863022,-6970.38,0.0002,2]
[361689727,1747693863032,-492.52,0.0002,2]
[361689728,1747693863041,-572.38,0.0002,2]
[361689729,1747693863050,-430.0,0.0002,2]
[361689730,1747693863060,-1276.02,0.0002,2]
[361689731,1747693863069,-430.0,0.0002,2]
[361689732,1747693863078,-2285.96,0.0002,2]
[361689733,1747693863088,-1674.68,0.0002,2]
[361689734,1747693863097,-430.0,0.0002,2]
[361689735,1747693863106,-522.12252689,0.0002,2]
[361689736,1747693863115,-430.0,0.0002,2]
[361689737,1747693863124,-430.0,0.0002,2]
[361689738,1747693863134,-203.94563309,0.0002,2]
[361689739,1747693863144,-430.0,0.0002,2]
[361689740,1747693863153,-1177.1,0.0002,2]
[361689741,1747693863163,-430.0,0.0002,2]
[361689742,1747693863173,-4144.0,0.0002,2]
[361689743,1747693863182,-4514.42,0.0002,2]
[361689744,1747693863192,-589.39,0.0002,2]
[361689745,1747693863202,-2345.01,0.0002,2]
[361689746,1747693863215,-430.0,0.0002,2]
[361689747,1747693863224,-430.0,0.0002,2]
[361689748,1747693863234,-430.0,0.0002,2]
[361689749,1747693863243,-1255.98,0.0002,2]
[361689750,1747693863253,-1428.09,0.0002,2]
[361689751,1747693863263,-1007.3,0.0002,2]
[361689752,1747693863273,-430.0,0.0002,2]
[361689753,1747693863283,-430.0,0.0002,2]
[361689754,1747693863292,-430.0,0.0002,2]
[361689755,1747693863302,-567.37,0.0002,2]
[361689756,1747693863311,-430.0,0.0002,2]
[361689757,1747693863321,-430.0,0.0002,2]
[361689758,1747693863330,-1170.71,0.0002,2]
[361689759,1747693863339,-430.0,0.0002,2]
[361689760,1747693863349,-430.0,0.0002,2]
[361689761,1747693863358,-6164.94,0.0002,2]
[361689762,1747693863368,-1695.82,0.0002,2]
[361689763,1747693863377,-1029.82,0.0002,2]
[361689764,1747693863386,-321.29,0.0002,2]
[361689765,1747693863396,-430.0,0.0002,2]
[361689766,1747693863405,-430.0,0.0002,2]
[361689767,1747693863415,-1142.01,0.0002,2]
[361689768,1747693863424,-430.0,0.0002,2]
[361689769,1747693863434,-503.28,0.0002,2]
[361689770,1747693863443,-1592.78,0.0002,2]
[361689771,1747693863453,-1295.39,0.0002,2]
[361689772,1747693863462,-670.07,0.0002,2]
[361689773,1747693863472,-430.0,0.0002,2]
[361689774,1747693863481,-430.0,0.0002,2]
[361689775,1747693863491,-430.0,0.0002,2]
[361689776,1747693863500,-430.0,0.0002,2]
[361689777,1747693863509,-1232.45,0.0002,2]
[361689778,1747693863519,-1017.31,0.0002,2]
[361689779,1747693863528,-430.0,0.0002,2]
[361689780,1747693863538,-1326.53,0.0002,2]
[361689781,1747693863547,-1258.46,0.0002,2]
[361689782,1747693863556,-430.0,0.0002,2]
[361689783,1747693863566,-2643.08,0.0002,2]
[361689784,1747693863575,-430.0,0.0002,2]
[361689785,1747693863585,-430.0,0.0002,2]
[361689786,1747693863594,-430.0,0.0002,2]
[361689787,1747693863603,-1678.98,0.0002,2]
[361689788,1747693863613,-430.0,0.0002,2]
[361689789,1747693863622,-670.64,0.0002,2]
[361689790,1747693863632,-872.02,0.0002,2]
[361689791,1747693863641,-430.0,0.0002,2]
[361689792,1747693863650,-430.0,0.0002,2]
[361689793,1747693863660,-747.98,0.0002,2]
[361689794,1747693863669,-993.14,0.0002,2]
[361689795,1747693863679,-4000.0,0.0002,4]
[361689796,1747693863688,-430.0,0.0002,2]
[361689797,1747693863698,-867.01,0.0002,2]
[361689798,1747693863707,-561.84,0.0002,2]
[361689799,1747693863717,-430.0,0.0002,2]
[361689800,1747693863727,-896.57,0.0002,2]
[361689801,1747693863736,-430.0,0.0002,2]
[361689802,1747693863746,-846.37,0.0002,2]
[361689803,1747693863755,-489.72,0.0002,2]
[361689804,1747693863765,-507.94,0.0002,2]
[361689805,1747693863775,-430.0,0.0002,2]
[361689806,1747693863784,-551.77,0.0002,2]
[361689807,1747693863794,-533.4,0.0002,2]
[361689808,1747693863804,-546.01,0.0002,2]
[361689809,1747693863813,-1186.61,0.0002,2]
[361689810,1747693863823,-691.74,0.0002,2]
[361689811,1747693863832,-536.58,0.0002,2]
[361689812,1747693863842,-587.23,0.0002,2]
[361689813,1747693863851,-1193.12,0.0002,2]
[361689814,1747693863860,-1021.33,0.0002,2]
[361689815,1747693863870,-220.0,0.0002,2]
[361689816,1747693863879,-1095.83,0.0002,2]
[361689817,1747693863889,-180.53,0.0002,2]
[361689818,1747693863899,-346.69864151,0.0002,2]
[361689819,1747693863909,-1500.0,0.00020045,2]
[361689820,1747693863918,-1500.0,0.00020045,2]
[361689821,1747693863928,-1358.27589429,0.00020045,2]
[361689822,1747693863938,-1159.3892112,0.00020107,2]
[361689823,1747693863948,-240.059689,0.00020187,2]
[361689824,1747693863958,-159.9212359,0.00020265,2]